lending/lending_fUSD_20250917
["ID","MTS","AMOUNT","RATE_DAILY","PERIOD"]
[385912105,1758131480555,-472.26,0.00025096,2]
[385912106,1758131480564,-472.26,0.00025096,2]
[385912107,1758131480573,-472.26,0.00025096,2]
[385912108,1758131480583,-182.59,0.00025096,2]
[385912109,1758131480593,-200.0,0.000251,7]
[385912110,1758131480602,-724.52,0.000251,2]
[385912111,1758131480612,-168.0,0.00025101,2]
[385912112,1758131480621,-489.37,0.00025112,2]
[385912113,1758131480630,-289.243169,0.00025112,2]
[385912114,1758131480640,-198.362773,0.00025112,2]
[385912115,1758131480649,-584.85,0.00025112,2]
[385912116,1758131480659,-400.0,0.00025112,2]
[385912117,1758131480669,-569.4,0.00025112,2]
[385912118,1758131480678,-2444.1,0.00025112,2]
[385912119,1758131480688,-400.0,0.00025112,2]
[385912120,1758131480697,-571.13,0.00025112,2]
[385912121,1758131480707,-574.63,0.00025112,2]
[385912122,1758131480716,-453.12,0.00025112,2]
[385912123,1758131480725,-696.41,0.00025112,2]
[385912124,1758131480735,-1567.04,0.00025112,2]
[385912125,1758131480744,-908.05,0.00025112,2]
[385912126,1758131480753,-486.03,0.00025112,2]
[385912127,1758131480763,-611.17,0.00025112,2]
[385912128,1758131480773,-487.0,0.00025112,2]
[385912129,1758131480782,-1065.47,0.00025112,2]
[385912130,1758131480794,-400.0,0.00025112,2]
[385912131,1758131480804,-751.64,0.00025112,2]
[385912132,1758131480813,-14812.96,0.00025112,2]
[385912133,1758131480823,-995.91,0.00025112,2]
[385912134,1758131480832,-923.1,0.00025112,2]
[385912135,1758131480842,-403.2,0.00025112,2]
[385912136,1758131480851,-699.46,0.00025112,2]
[385912137,1758131480861,-2176.27,0.00025112,2]
[385912138,1758131480871,-1126.89,0.00025112,2]
[385912139,1758131480880,-2761.17,0.00025112,2]
[385912140,1758131480890,-400.0,0.00025112,2]
[385912141,1758131480899,-1077.38,0.00025112,2]
[385912142,1758131480910,-810.57,0.00025112,2]
[385912143,1758131480919,-400.0,0.00025112,2]
[385912144,1758131480929,-2677.29,0.00025112,2]
[385912145,1758131480938,-2715.75,0.00025112,2]
[385912146,1758131480948,-1131.67,0.00025112,2]
[385912147,1758131480957,-633.79,0.00025112,2]
[385912148,1758131480970,-623.43,0.00025112,2]
[385912149,1758131480981,-500.0,0.00025112,2]
[385912150,1758131480991,-3560.1,0.00025112,2]
[385912151,1758131481001,-400.0,0.00025112,2]
[385912152,1758131481011,-400.0,0.00025112,2]
[385912153,1758131481020,-484.81,0.00025112,2]
[385912154,1758131481029,-1076.33,0.00025112,2]
[385912155,1758131481040,-400.0,0.00025112,2]
[385912156,1758131481049,-1315.56,0.00025112,2]
[385912157,1758131481059,-426.46,0.00025112,2]
[385912158,1758131481069,-2358.0,0.00025112,2]
[385912159,1758131481078,-2404.84,0.00025112,2]
[385912160,1758131481087,-4070.35,0.00025112,2]
[385912161,1758131481096,-400.0,0.00025113,2]
[385912162,1758131481105,-400.0,0.00025113,2]
[385912163,1758131481114,-400.0,0.00025113,2]
[385912164,1758131481123,-400.0,0.00025113,2]
[385912165,1758131481133,-400.0,0.00025113,2]
[385912166,1758131481142,-412.4,0.00025113,2]
[385912167,1758131481152,-400.0,0.00025113,2]
[385912168,1758131481161,-400.0,0.00025113,2]
[385912169,1758131481170,-400.0,0.00025113,2]
[385912170,1758131481179,-400.0,0.00025113,2]
[385912171,1758131481189,-400.0,0.00025113,2]
[385912172,1758131481198,-400.0,0.00025113,2]
[385912173,1758131481207,-525.95,0.00025113,2]
[385912174,1758131481217,-400.0,0.00025113,2]
[385912175,1758131481227,-400.0,0.00025113,2]
[385912176,1758131481236,-400.0,0.00025113,2]
[385912177,1758131481245,-400.0,0.00025113,2]
[385912178,1758131481254,-400.0,0.00025113,2]
[385912179,1758131481263,-400.0,0.00025113,2]
[385912180,1758131481273,-500.0,0.00025113,14]
[385912181,1758131481282,-400.0,0.00025113,2]
[385912182,1758131481293,-407.93705561,0.00025113,2]
[385912183,1758131481302,-417.53233064,0.00025113,2]
[385912184,1758131481311,-400.0,0.00025113,2]
[385912185,1758131481321,-400.0,0.00025113,2]
[385912186,1758131481330,-400.0,0.00025113,2]
[385912187,1758131481339,-400.0,0.00025113,2]
[385912188,1758131481348,-400.0,0.00025113,2]
[385912189,1758131481357,-400.0,0.00025113,2]
[385912190,1758131481367,-400.0,0.00025113,2]
[385912191,1758131481376,-400.0,0.00025113,2]
[385912192,1758131481386,-400.0,0.00025113,2]
[385912193,1758131481396,-400.0,0.00025113,2]
[385912194,1758131481405,-400.0,0.00025113,2]
[385912195,1758131481415,-400.0,0.00025113,2]
[385912196,1758131481424,-400.0,0.00025113,2]
[385912197,1758131481433,-400.0,0.00025113,2]
[385912198,1758131481442,-533.37341338,0.00025113,2]
[385912199,1758131481451,-400.0,0.00025113,2]
[385912200,1758131481461,-400.0,0.00025113,2]
[385912201,1758131481471,-400.0,0.00025113,2]
[385912202,1758131481481,-188.2454061,0.00025113,2]
[385912203,1758131481491,-400.0,0.00025113,2]
[385912204,1758131481501,-400.0,0.00025113,2]
[385912205,1758131481511,-430.36,0.00025113,2]
[385912206,1758131481522,-588.81,0.00025113,2]
[385912207,1758131481533,-400.0,0.00025113,2]
[385912208,1758131481544,-400.0,0.00025113,2]
[385912209,1758131481553,-400.0,0.00025113,2]
[385912210,1758131481563,-771.14,0.00025113,2]
[385912211,1758131481573,-400.0,0.00025113,2]
[385912212,1758131481584,-400.0,0.00025113,2]
[385912213,1758131481594,-400.0,0.00025113,2]
[385912214,1758131481603,-400.0,0.00025113,2]
[385912215,1758131481612,-400.0,0.00025113,2]
[385912216,1758131481622,-400.0,0.00025113,2]
[385912217,1758131481632,-400.0,0.00025113,2]
[385912218,1758131481641,-400.0,0.00025113,2]
[385912219,1758131481651,-943.34,0.00025114,2]
[385912220,1758131481661,-4018.49,0.00025114,2]
[385912221,1758131481670,-701.65,0.00025114,2]
[385912222,1758131481680,-1891.23,0.00025114,2]
[385912223,1758131481690,-500.0,0.00025121,2]
[385912224,1758131481699,-500.0,0.00025121,2]
[385912225,1758131481708,-150.0,0.00025121,2]
[385912226,1758131481719,-500.0,0.00025121,2]
[385912227,1758131481728,-500.0,0.00025121,2]
[385912228,1758131481739,-565.0,0.00025121,2]
[385912229,1758131481749,-500.0,0.00025121,2]
[385912230,1758131481759,-3122.0,0.00025121,2]
[385912231,1758131481769,-487.0,0.00025121,2]
[385912232,1758131481778,-500.0,0.00025121,2]
[385912233,1758131481789,-500.0,0.00025121,2]
[385912234,1758131481799,-150.0,0.00025121,2]
[385912235,1758131481809,-4624.33,0.00025122,2]
[385912236,1758131481818,-500.0,0.00025123,2]
[385912237,1758131481827,-2406.73,0.00025123,2]
[385912238,1758131481837,-325.44623276,0.00025123,10]
[385912239,1758131481846,-1235.05,0.00025123,2]
[385912240,1758131481856,-567.49,0.00025123,2]
[385912241,1758131481865,-246.70782677,0.00025123,2]
[385912242,1758131481874,-400.0,0.00025123,2]
[385912243,1758131481884,-1147.59,0.00025123,2]
[385912244,1758131481893,-474.51,0.00025123,2]
[385912245,1758131481903,-400.0,0.00025123,2]
[385912246,1758131481912,-1412.24,0.00025123,2]
[385912247,1758131481921,-706.63,0.00025123,2]
[385912248,1758131481930,-2417.66,0.00025123,2]
[385912249,1758131481939,-524.13,0.00025123,2]
[385912250,1758131481948,-573.54,0.00025123,2]
[385912251,1758131481958,-948.73,0.00025123,2]
[385912252,1758131481967,-2346.09,0.00025123,2]
[385912253,1758131481976,-4760.55,0.00025123,2]
[385912254,1758131481985,-400.0,0.00025123,2]
[385912255,1758131481994,-666.56,0.00025123,2]
[385912256,1758131482003,-1032.93,0.00025123,2]
[385912257,1758131482012,-821.53,0.00025123,2]
[385912258,1758131482023,-967.11,0.00025123,2]
[385912259,1758131482032,-1252.99,0.00025123,2]
[385912260,1758131482042,-704.15,0.00025123,2]
[385912261,1758131482052,-400.0,0.00025123,2]
[385912262,1758131482061,-649.13,0.00025123,2]
[385912263,1758131482070,-620.07,0.00025123,2]
[385912264,1758131482080,-500.0,0.00025123,2]
[385912265,1758131482089,-4154.54,0.00025123,2]
[385912266,1758131482098,-715.62,0.00025123,2]
[385912267,1758131482108,-400.0,0.00025123,2]
[385912268,1758131482117,-532.67,0.00025123,2]
[385912269,1758131482126,-400.0,0.00025124,2]
[385912270,1758131482135,-400.0,0.00025124,2]
[385912271,1758131482314,-400.0,0.00025124,2]
[385912272,1758131482326,-266.78650015,0.00025124,2]
[385912273,1758131482335,-400.0,0.00025124,2]
[385912274,1758131482346,-400.0,0.00025124,2]
[385912275,1758131482357,-422.64843782,0.00025124,2]
[385912276,1758131482366,-419.2046368,0.00025124,2]
[385912277,1758131482378,-400.0,0.00025124,2]
[385912278,1758131482388,-400.0,0.00025124,2]
[385912279,1758131482398,-400.0,0.00025124,2]
[385912280,1758131482408,-401.58427196,0.00025124,2]
[385912281,1758131482419,-400.0,0.00025124,2]
[385912282,1758131482428,-400.0,0.00025124,2]
[385912283,1758131482438,-400.0,0.00025124,2]
[385912284,1758131482449,-400.0,0.00025124,2]
[385912285,1758131482458,-400.0,0.00025124,2]
[385912286,1758131482468,-400.0,0.00025124,2]
[385912287,1758131482479,-400.0,0.00025124,2]
[385912288,1758131482491,-400.0,0.00025124,2]
[385912289,1758131482503,-400.0,0.00025124,2]
[385912290,1758131482514,-270.13852287,0.00025124,2]
[385912291,1758131482525,-400.0,0.00025124,2]
[385912292,1758131482537,-401.75800814,0.00025124,2]
[385912293,1758131482546,-402.37500394,0.00025124,2]
[385912294,1758131482557,-399.77605006,0.00025124,2]
[385912295,1758131482568,-400.0,0.00025124,2]
[385912296,1758131482579,-400.0,0.00025124,2]
[385912297,1758131482590,-400.0,0.00025124,2]
[385912298,1758131482600,-610.56,0.00025124,2]
[385912299,1758131482610,-400.0,0.00025124,2]
[385912300,1758131482620,-400.0,0.00025124,2]
[385912301,1758131482630,-400.0,0.00025124,2]
[385912302,1758131482640,-400.0,0.00025124,2]
[385912303,1758131482649,-536.68,0.00025124,2]
[385912304,1758131482659,-400.0,0.00025124,2]
[385912305,1758131482670,-953.64,0.00025124,2]
[385912306,1758131482680,-400.0,0.00025124,2]
[385912307,1758131482692,-653.84,0.00025124,2]
[385912308,1758131482702,-432.74,0.00025124,2]
[385912309,1758131482711,-400.0,0.00025124,2]
[385912310,1758131482720,-631.73,0.00025124,2]
[385912311,1758131482730,-1268.84,0.00025124,2]
[385912312,1758131482741,-400.0,0.00025124,2]
[385912313,1758131482751,-400.0,0.00025124,2]
[385912314,1758131482760,-426.24,0.00025124,2]
[385912315,1758131482770,-540.01,0.00025124,2]
[385912316,1758131482779,-646.55,0.00025124,2]
[385912317,1758131482790,-400.0,0.00025124,2]
[385912318,1758131482799,-438.7,0.00025124,2]
[385912319,1758131482809,-400.0,0.00025124,2]
[385912320,1758131482819,-400.0,0.00025124,2]
[385912321,1758131482828,-400.0,0.00025124,2]
[385912322,1758131482838,-400.0,0.00025124,2]
[385912323,1758131482847,-421.94,0.00025124,2]
[385912324,1758131482857,-400.0,0.00025124,2]
[385912325,1758131482867,-766.6,0.00025124,2]
[385912326,1758131482877,-400.0,0.00025124,2]
[385912327,1758131482886,-405.68183882,0.00025124,2]
[385912328,1758131482896,-706.89,0.00025124,2]
[385912329,1758131482905,-400.0,0.00025124,2]
[385912330,1758131482915,-473.1,0.00025124,2]
[385912331,1758131482925,-749.15,0.00025124,2]
[385912332,1758131482935,-400.0,0.00025124,2]
[385912333,1758131482944,-656.86,0.00025124,2]
[385912334,1758131482954,-400.0,0.00025124,2]
[385912335,1758131482966,-400.0,0.00025124,2]
[385912336,1758131482977,-400.0,0.00025124,2]
[385912337,1758131482986,-400.0,0.00025124,2]
[385912338,1758131482995,-400.0,0.00025124,2]
[385912339,1758131483006,-410.22,0.00025124,2]
[385912340,1758131483015,-405.60312374,0.00025124,2]
[385912341,1758131483025,-400.0,0.00025124,2]
[385912342,1758131483034,-400.0,0.00025124,2]
[385912343,1758131483045,-508.08,0.00025124,2]
[385912344,1758131483054,-964.24,0.00025124,2]
[385912345,1758131483064,-400.0,0.00025124,2]
[385912346,1758131483074,-466.34,0.00025124,2]
[385912347,1758131483083,-585.64,0.00025124,2]
[385912348,1758131483092,-488.75,0.00025124,2]
[385912349,1758131483101,-400.0,0.00025124,2]
[385912350,1758131483110,-637.19,0.00025124,2]
[385912351,1758131483119,-1125.7,0.00025124,2]
[385912352,1758131483128,-484.92,0.00025124,2]
[385912353,1758131483137,-540.38336612,0.00025124,2]
[385912354,1758131483146,-529.65,0.00025124,2]
[385912355,1758131483155,-400.0,0.00025124,2]
[385912356,1758131483164,-3941.99,0.00025124,2]
[385912357,1758131483173,-401.11,0.00025124,2]
[385912358,1758131483182,-763.34,0.00025124,2]
[385912359,1758131483192,-400.0,0.00025124,2]
[385912360,1758131483202,-400.0,0.00025124,2]
[385912361,1758131483211,-400.0,0.00025124,2]
[385912362,1758131483220,-400.0,0.00025124,2]
[385912363,1758131483230,-400.0,0.00025124,2]
[385912364,1758131483239,-441.29531097,0.00025124,2]
[385912365,1758131483248,-423.2,0.00025124,2]
[385912366,1758131483257,-800.0,0.00025124,2]
[385912367,1758131483267,-591.41,0.00025124,2]
[385912368,1758131483277,-400.0,0.00025124,2]
[385912369,1758131483287,-530.36,0.00025124,2]
[385912370,1758131483297,-664.15,0.00025124,2]
[385912371,1758131483306,-409.34,0.00025124,2]
[385912372,1758131483316,-400.0,0.00025124,2]
[385912373,1758131483325,-400.0,0.00025124,2]
[385912374,1758131483334,-543.58,0.00025124,2]
[385912375,1758131483343,-606.68,0.00025124,2]
[385912376,1758131483352,-528.77,0.00025124,2]
[385912377,1758131483361,-511.5,0.00025124,2]
[385912378,1758131483370,-441.76,0.00025124,2]
[385912379,1758131483379,-405.81,0.00025124,2]
[385912380,1758131483389,-893.58,0.00025124,2]
[385912381,1758131483398,-491.22,0.00025124,2]
[385912382,1758131483407,-610.77,0.00025124,2]
[385912383,1758131483416,-481.72,0.00025124,2]
[385912384,1758131483425,-400.0,0.00025124,2]
[385912385,1758131483435,-600.14,0.00025124,2]
[385912386,1758131483444,-1142.36,0.00025124,2]
[385912387,1758131483453,-400.0,0.00025124,2]
[385912388,1758131483463,-450.52,0.00025124,2]
[385912389,1758131483472,-687.67,0.00025124,2]
[385912390,1758131483482,-603.68,0.00025124,2]
[385912391,1758131483491,-489.45,0.00025124,2]
[385912392,1758131483500,-400.0,0.00025124,2]
[385912393,1758131483509,-688.0,0.00025124,2]
[385912394,1758131483519,-572.92,0.00025124,2]
[385912395,1758131483529,-537.91,0.00025124,2]
[385912396,1758131483538,-550.77,0.00025124,2]
[385912397,1758131483547,-671.22,0.00025124,2]
[385912398,1758131483557,-400.0,0.00025124,2]
[385912399,1758131483566,-605.67,0.00025124,2]
[385912400,1758131483575,-956.98,0.00025124,2]
[385912401,1758131483585,-672.08,0.00025124,2]
[385912402,1758131483596,-400.0,0.00025124,2]
[385912403,1758131483606,-527.21,0.00025124,2]
[385912404,1758131483616,-500.0,0.00025133,2]
[385912405,1758131483625,-400.0,0.00025134,2]
[385912406,1758131483635,-400.0,0.00025134,2]
[385912407,1758131483644,-400.0,0.00025134,2]
[385912408,1758131483653,-400.0,0.00025134,2]
[385912409,1758131483663,-450.83,0.00025134,2]
[385912410,1758131483672,-400.0,0.00025134,2]
[385912411,1758131483682,-808.45,0.00025134,2]
[385912412,1758131483691,-400.0,0.00025134,2]
[385912413,1758131483700,-400.0,0.00025134,2]
[385912414,1758131483710,-460.51,0.00025134,2]
[385912415,1758131483720,-412.80368181,0.00025134,2]
[385912416,1758131483729,-400.0,0.00025134,2]
[385912417,1758131483738,-400.0,0.00025134,2]
[385912418,1758131483748,-671.52,0.00025134,2]
[385912419,1758131483758,-400.0,0.00025134,2]
[385912420,1758131483766,-682.44,0.00025134,2]
[385912421,1758131483776,-748.84,0.00025134,2]
[385912422,1758131483786,-400.0,0.00025134,2]
[385912423,1758131483795,-422.58,0.00025134,2]
[385912424,1758131483805,-916.63,0.00025134,2]
[385912425,1758131483815,-876.13,0.00025134,2]
[385912426,1758131483824,-752.91,0.00025134,2]
[385912427,1758131483833,-400.0,0.00025134,2]
[385912428,1758131483843,-673.53,0.00025134,2]
[385912429,1758131483852,-617.21,0.00025134,2]
[385912430,1758131483861,-400.0,0.00025134,2]
[385912431,1758131483870,-552.13,0.00025134,2]
[385912432,1758131483880,-772.46,0.00025134,2]
[385912433,1758131483889,-400.0,0.00025134,2]
[385912434,1758131483898,-694.05,0.00025134,2]
[385912435,1758131483907,-463.11,0.00025134,2]
[385912436,1758131483917,-512.35,0.00025134,2]
[385912437,1758131483926,-354.39512369,0.00025134,2]
[385912438,1758131483935,-406.51,0.00025134,2]
[385912439,1758131483944,-431.08550734,0.00025134,2]
[385912440,1758131483954,-807.12,0.00025134,2]
[385912441,1758131483965,-415.59008033,0.00025134,2]
[385912442,1758131483976,-408.48412405,0.00025134,2]
[385912443,1758131483985,-408.51,0.00025134,2]
[385912444,1758131483994,-460.82877631,0.00025134,2]
[385912445,1758131484004,-400.0,0.00025134,2]
[385912446,1758131484013,-909.64,0.00025134,2]
[385912447,1758131484023,-400.0,0.00025134,2]
[385912448,1758131484032,-487.21,0.00025134,2]
[385912449,1758131484043,-400.0,0.00025134,2]
[385912450,1758131484053,-739.38,0.00025134,2]
[385912451,1758131484063,-400.0,0.00025134,2]
[385912452,1758131484073,-487.4,0.00025134,2]
[385912453,1758131484082,-400.0,0.00025134,2]
[385912454,1758131484092,-400.0,0.00025134,2]
[385912455,1758131484101,-507.67,0.00025134,2]
[385912456,1758131484112,-468.69,0.00025134,2]
[385912457,1758131484121,-465.98,0.00025134,2]
[385912458,1758131484132,-684.11,0.00025134,2]
[385912459,1758131484142,-400.0,0.00025134,2]
[385912460,1758131484153,-400.0,0.00025134,2]
[385912461,1758131484163,-400.0,0.00025134,2]
[385912462,1758131484172,-321.56466127,0.00025134,2]
[385912463,1758131484182,-590.87,0.00025134,2]
[385912464,1758131484191,-490.07,0.00025134,2]
[385912465,1758131484200,-400.0,0.00025134,2]
[385912466,1758131484210,-400.0,0.00025134,2]
[385912467,1758131484219,-400.0,0.00025134,2]
[385912468,1758131484229,-495.20665467,0.00025134,2]
[385912469,1758131484238,-400.0,0.00025134,2]
[385912470,1758131484247,-400.0,0.00025134,2]
[385912471,1758131484256,-528.96902337,0.00025134,2]
[385912472,1758131484265,-400.0,0.00025134,2]
[385912473,1758131484275,-400.0,0.00025134,2]
[385912474,1758131484285,-400.0,0.00025134,2]
[385912475,1758131484298,-400.0,0.00025134,2]
[385912476,1758131484307,-400.0,0.00025134,2]
[385912477,1758131484316,-615.91,0.00025134,2]
[385912478,1758131484326,-400.0,0.00025134,2]
[385912479,1758131484335,-400.0,0.00025134,2]
[385912480,1758131484345,-400.0,0.00025134,2]
[385912481,1758131484354,-400.0,0.00025134,2]
[385912482,1758131484364,-400.0,0.00025134,2]
[385912483,1758131484374,-400.0,0.00025134,2]
[385912484,1758131484383,-400.0,0.00025134,2]
[385912485,1758131484392,-460.04,0.00025134,2]
[385912486,1758131484402,-400.0,0.00025134,2]
[385912487,1758131484411,-400.0,0.00025134,2]
[385912488,1758131484420,-444.61,0.00025134,2]
[385912489,1758131484429,-400.0,0.00025134,2]
[385912490,1758131484439,-520.30226853,0.00025134,2]
[385912491,1758131484448,-460.62,0.00025134,2]
[385912492,1758131484457,-400.0,0.00025134,2]
[385912493,1758131484467,-400.0,0.00025134,2]
[385912494,1758131484476,-400.0,0.00025134,2]
[385912495,1758131484486,-438.44,0.00025134,2]
[385912496,1758131484495,-557.59,0.00025134,2]
[385912497,1758131484504,-400.0,0.00025134,2]
[385912498,1758131484513,-400.0,0.00025134,2]
[385912499,1758131484522,-400.0,0.00025134,2]
[385912500,1758131484531,-400.0,0.00025134,2]
[385912501,1758131484543,-631.33,0.00025134,2]
[385912502,1758131484552,-400.0,0.00025134,2]
[385912503,1758131484562,-720.58,0.00025134,2]
[385912504,1758131484571,-400.0,0.00025134,2]
[385912505,1758131484580,-400.0,0.00025134,2]
[385912506,1758131484590,-447.22,0.00025134,2]
[385912507,1758131484599,-400.0,0.00025134,2]
[385912508,1758131484608,-456.92,0.00025134,2]
[385912509,1758131484618,-400.0,0.00025134,2]
[385912510,1758131484627,-1127.27,0.00025134,2]
[385912511,1758131484637,-400.0,0.00025134,2]
[385912512,1758131484646,-502.01,0.00025134,2]
[385912513,1758131484655,-232.340758,0.00025134,2]
[385912514,1758131484665,-867.5,0.00025134,2]
[385912515,1758131484675,-422.92,0.00025134,2]
[385912516,1758131484684,-400.0,0.00025134,2]
[385912517,1758131484694,-502.56,0.00025134,2]
[385912518,1758131484704,-492.25,0.00025134,2]
[385912519,1758131484713,-400.0,0.00025134,2]
[385912520,1758131484723,-400.0,0.00025134,2]
[385912521,1758131484732,-400.0,0.00025134,2]
[385912522,1758131484741,-400.0,0.00025134,2]
[385912523,1758131484751,-671.57,0.00025134,2]
[385912524,1758131484761,-400.0,0.00025134,2]
[385912525,1758131484770,-480.06,0.00025134,2]
[385912526,1758131484780,-815.91,0.00025134,2]
[385912527,1758131484790,-1119.25,0.00025134,2]
[385912528,1758131484800,-400.0,0.00025134,2]
[385912529,1758131484809,-384.06386511,0.00025134,2]
[385912530,1758131484818,-400.0,0.00025134,2]
[385912531,1758131484828,-400.0,0.00025134,2]
[385912532,1758131485003,-928.99,0.00025134,2]
[385912533,1758131485015,-584.06,0.00025134,2]
[385912534,1758131485025,-509.92,0.00025134,2]
[385912535,1758131485034,-4624.33,0.00025134,2]
[385912536,1758131485046,-400.0,0.00025134,2]
[385912537,1758131485057,-400.0,0.00025134,2]
[385912538,1758131485066,-400.0,0.00025134,2]
[385912539,1758131485075,-281.03865908,0.00025134,2]
[385912540,1758131485085,-1104.61,0.00025134,2]
[385912541,1758131485094,-400.0,0.00025134,2]
[385912542,1758131485104,-400.0,0.00025134,2]
[385912543,1758131485113,-400.0,0.00025134,2]
[385912544,1758131485123,-422.63,0.00025134,2]
[385912545,1758131485132,-400.0,0.00025134,2]
[385912546,1758131485142,-472.2,0.00025134,2]
[385912547,1758131485153,-626.4,0.00025134,2]
[385912548,1758131485163,-400.0,0.00025134,2]
[385912549,1758131485172,-400.0,0.00025134,2]
[385912550,1758131485181,-400.0,0.00025134,2]
[385912551,1758131485190,-400.0,0.00025134,2]
[385912552,1758131485200,-400.0,0.00025134,2]
[385912553,1758131485210,-629.4,0.00025134,2]
[385912554,1758131485220,-400.0,0.00025134,2]
[385912555,1758131485230,-457.35,0.00025134,2]
[385912556,1758131485239,-771.83,0.00025134,2]
[385912557,1758131485249,-400.0,0.00025134,2]
[385912558,1758131485258,-446.12,0.00025134,2]
[385912559,1758131485267,-400.0,0.00025134,2]
[385912560,1758131485277,-400.0,0.00025134,2]
[385912561,1758131485287,-400.0,0.00025134,2]
[385912562,1758131485297,-485.9,0.00025134,2]
[385912563,1758131485307,-400.0,0.00025134,2]
[385912564,1758131485317,-400.0,0.00025134,2]
[385912565,1758131485326,-502.41,0.00025134,2]
[385912566,1758131485336,-575.82,0.00025134,2]
[385912567,1758131485345,-572.43,0.00025134,2]
[385912568,1758131485354,-577.21,0.00025134,2]
[385912569,1758131485364,-400.0,0.00025134,2]
[385912570,1758131485373,-400.0,0.00025134,2]
[385912571,1758131485382,-609.47,0.00025134,2]
[385912572,1758131485392,-697.32,0.00025134,2]
[385912573,1758131485403,-402.32718852,0.00025134,2]
[385912574,1758131485413,-400.0,0.00025134,2]
[385912575,1758131485422,-534.9,0.00025134,2]
[385912576,1758131485432,-791.84,0.00025134,2]
[385912577,1758131485442,-409.11220128,0.00025134,2]
[385912578,1758131485451,-631.56,0.00025134,2]
[385912579,1758131485461,-487.63778758,0.00025134,2]
[385912580,1758131485471,-668.11,0.00025134,2]
[385912581,1758131485481,-400.0,0.00025134,2]
[385912582,1758131485490,-400.0,0.00025134,2]
[385912583,1758131485499,-445.18,0.00025134,2]
[385912584,1758131485509,-418.84667783,0.00025134,2]
[385912585,1758131485518,-400.0,0.00025134,2]
[385912586,1758131485528,-400.0,0.00025134,2]
[385912587,1758131485538,-435.28,0.00025134,2]
[385912588,1758131485547,-413.81921777,0.00025134,2]
[385912589,1758131485556,-589.94,0.00025134,2]
[385912590,1758131485566,-400.0,0.00025134,2]
[385912591,1758131485576,-408.88,0.00025134,2]
[385912592,1758131485586,-400.0,0.00025134,2]
[385912593,1758131485596,-834.3,0.00025134,2]
[385912594,1758131485606,-400.0,0.00025134,2]
[385912595,1758131485615,-400.0,0.00025134,2]
[385912596,1758131485625,-647.06,0.00025134,2]
[385912597,1758131485635,-400.0,0.00025134,2]
[385912598,1758131485644,-400.0,0.00025134,2]
[385912599,1758131485653,-1362.11,0.00025134,2]
[385912600,1758131485662,-400.0,0.00025134,2]
[385912601,1758131485674,-400.0,0.00025134,2]
[385912602,1758131485683,-3004.05,0.00025134,2]
[385912603,1758131485693,-400.0,0.00025134,2]
[385912604,1758131485702,-623.62,0.00025134,2]